bitfinex-derivatives/quotes_BNBF0:USTF0_20250630
["timestamp","ask_amount","ask_price","bid_price","bid_amount"]
[1751256114372,0.26521661,656.66,656.16,1.1820631]
[1751256114670,3.810242,657.73,656.17,1.1820631]
[1751256114868,3.810242,658.36,656.18,1.1820631]
[1751256115074,0.2650096,656.84,656.19,1.1820631]
[1751256115273,3.810242,658.36,656.2,1.1820631]
[1751256115470,0.26494402,657.82,656.21,1.1820631]
[1751256115670,0.26494402,657.82,656.22,1.1820631]
[1751256115870,0.26494402,657.82,656.23,1.1820631]
[1751256116174,0.26494402,657.82,656.24,1.1820631]
[1751256116473,0.26494402,657.82,656.25,1.1820631]
[1751256116770,0.26494402,657.82,656.26,1.1820631]
[1751256116970,0.26494402,657.82,656.27,1.1820631]
[1751256117171,0.26494402,657.82,656.28,1.1820631]
[1751256117373,0.26494402,657.82,656.29,1.1820631]
[1751256117574,0.26494402,657.82,656.3,1.1820631]
[1751256117773,0.26494402,657.82,656.31,1.1820631]
[1751256117971,0.26494402,657.82,656.32,1.1820631]
[1751256118271,0.26494402,657.82,656.33,1.1820631]
[1751256118470,0.26494402,657.82,656.34,1.1820631]
[1751256118669,0.26494402,657.82,656.35,1.1820631]
[1751256118870,0.26494402,657.82,656.36,1.1820631]
[1751256119174,0.26494402,657.82,656.37,1.1820631]
[1751256119374,0.26494402,657.82,656.38,1.1820631]
[1751256119574,0.26494402,657.82,656.39,1.1820631]
[1751256119775,0.26494402,657.82,656.4,1.1820631]
[1751256119971,0.26494402,657.82,656.41,1.1820631]
[1751256120176,0.26494402,657.82,656.42,1.1820631]
[1751256120376,0.26494402,657.82,656.43,1.1820631]
[1751256120574,0.26494402,657.82,656.44,1.1820631]
[1751256120777,0.26494402,657.82,656.45,1.1820631]
[1751256120980,0.26494402,657.82,656.46,1.1820631]
[1751256121177,0.26494402,657.82,656.47,1.1820631]
[1751256121374,0.26494402,657.82,656.48,1.1820631]
[1751256121677,0.26494402,657.82,656.49,1.1820631]
[1751256121874,0.26494402,657.82,656.5,1.1820631]
[1751256122078,0.26494402,657.82,656.51,1.1820631]
[1751256122378,0.26494402,657.82,656.52,1.1820631]
[1751256122572,0.26494402,657.82,656.53,1.1820631]
[1751256122879,0.26494402,657.82,656.2,1.1390626]
[1751256123077,0.26494402,657.82,656.21,1.1785627]
[1751256123275,0.26494402,657.82,656.22,1.1785627]
[1751256123476,0.26494402,657.82,656.23,1.1785627]
[1751256123680,0.26494402,657.82,656.24,1.1785627]
[1751256123880,0.26494402,657.82,656.25,1.1785627]
[1751256124076,0.26494402,657.82,656.26,1.1785627]
[1751256124280,0.26494402,657.82,656.27,1.1785627]
[1751256124576,0.26494402,657.82,656.28,1.1785627]
[1751256124774,0.26494402,657.82,656.29,1.1785627]
[1751256124980,0.26494402,657.82,656.3,1.1785627]
[1751256125180,0.26494402,657.82,656.31,1.1785627]
[1751256125480,0.26494402,657.82,656.32,3.9445627]
[1751256125677,0.26494402,657.82,656.33,1.1785627]
[1751256125881,0.26494402,657.82,656.34,1.1785627]
[1751256126079,0.26494402,657.82,656.35,1.1785627]
[1751256126276,0.26494402,657.82,656.36,1.1785627]
[1751256126479,0.26494402,657.82,656.37,1.1785627]
[1751256126680,0.26494402,657.82,656.38,1.1785627]
[1751256126880,0.26494402,657.82,656.39,1.1785627]
[1751256127080,0.26494402,657.82,656.4,1.1785627]
[1751256127279,0.26494402,657.82,656.41,1.1785627]
[1751256127481,0.26494402,657.82,656.42,1.1785627]
[1751256127778,0.26494402,657.82,656.43,1.1785627]
[1751256127982,0.26494402,657.82,656.38,2.266]
[1751256128178,0.26494402,657.82,656.39,1.177468]
[1751256128479,0.26494402,657.82,656.4,1.177468]
[1751256128682,0.26494402,657.82,656.41,1.177468]
[1751256128878,0.26494402,657.82,656.38,2.266]
[1751256128879,0.26494402,657.82,656.42,1.177468]
[1751256129080,0.26494402,657.82,656.43,1.177468]
[1751256129279,0.26494402,657.82,656.44,1.177468]
[1751256129484,0.26494402,657.82,656.45,1.177468]
[1751256129684,0.26494402,657.82,656.38,2.266]
[1751256129883,0.26494402,657.82,656.39,1.1770006]
[1751256130185,0.26494402,657.82,656.4,1.1770006]
[1751256130383,0.26494402,657.82,656.41,1.1770006]
[1751256130582,0.26494402,657.82,656.42,1.1770006]
[1751256130783,0.26494402,657.82,656.43,1.1770006]
[1751256130985,0.26494402,657.82,656.44,1.1770006]
[1751256131282,0.26494402,657.82,656.45,1.1770006]
[1751256131480,0.26494402,657.82,656.46,1.1770006]
[1751256131686,0.26494402,657.82,656.38,2.266]
[1751256131882,0.26494402,657.82,656.39,1.1766333]
[1751256132180,0.26494402,657.82,656.38,2.266]
[1751256132181,0.26494402,657.82,656.4,1.1766333]
[1751256132383,0.26494402,657.82,656.41,1.1766333]
[1751256132582,0.26494402,657.82,656.42,1.1766333]
[1751256132888,0.26494402,657.82,656.43,1.1766333]
[1751256133085,0.26494402,657.82,656.44,1.1766333]
[1751256133284,0.26494402,657.82,656.45,1.1766333]
[1751256133482,0.26494402,657.82,656.38,2.266]
[1751256133483,0.26494402,657.82,656.46,1.1766333]
[1751256133682,0.26494402,657.82,656.38,2.266]
[1751256133886,0.26494402,657.82,656.39,1.1763564]
[1751256134086,0.26494402,657.82,656.4,1.1763564]
[1751256134282,0.26494402,657.82,656.41,1.1763564]
[1751256134483,0.26494402,657.82,656.42,1.1763564]
[1751256134687,0.26494402,657.82,656.43,1.1763564]
[1751256134886,0.26494402,657.82,656.44,1.1763564]
[1751256135086,0.26494402,657.82,656.45,1.1763564]
[1751256135281,0.26494402,657.82,656.38,2.266]
[1751256135282,0.26494402,657.82,656.46,1.1763564]
[1751256135482,0.26494402,657.82,656.47,1.1763564]
[1751256135684,0.26494402,657.82,656.38,2.266]
[1751256135989,0.26494402,657.82,656.39,1.1761636]
[1751256136188,0.26494402,657.82,656.4,1.1761636]
[1751256136387,0.26494402,657.82,656.41,1.1761636]
[1751256136588,0.26494402,657.82,656.42,1.1761636]
[1751256136889,0.26494402,657.82,656.43,1.1761636]
[1751256137085,0.26494402,657.82,656.38,2.266]
[1751256137388,0.26494402,657.82,656.39,1.1760508]
[1751256137586,0.26494402,657.82,656.4,1.1760508]
[1751256137888,0.26494402,657.82,656.41,1.1760508]
[1751256138086,0.26494402,657.82,656.38,2.266]
[1751256138291,0.26494402,657.82,656.39,1.1760236]
[1751256138490,0.26494402,657.82,656.4,1.1760236]
[1751256138688,0.26494402,657.82,656.41,1.1760236]
[1751256138889,0.26494402,657.82,656.38,2.266]
[1751256139088,0.26494402,657.82,656.39,1.1760354]
[1751256139284,0.26494402,657.82,656.4,1.1760354]
[1751256139487,0.26494402,657.82,656.41,1.1760354]
[1751256139690,0.26494402,657.82,656.42,1.1759721]
[1751256139888,0.26494402,657.82,656.41,3.267]
[1751256140186,0.26494402,657.82,656.42,1.1759721]
[1751256140489,0.26494402,657.82,656.41,3.267]
[1751256140693,0.26494402,657.82,656.42,1.1759495]
[1751256140994,0.26494402,657.82,656.41,3.267]
[1751256141289,0.26494402,657.82,656.42,1.1760375]
[1751256141494,0.26494402,657.82,656.43,1.1760375]
[1751256141687,0.26494402,657.82,656.41,3.267]
[1751256141887,0.26494402,657.82,656.42,1.1760796]
[1751256142186,0.26494402,657.82,656.41,3.267]
[1751256142187,0.26494402,657.82,656.43,1.1760796]
[1751256142391,0.26494402,657.82,656.41,3.267]
[1751256142590,0.26494402,657.82,656.42,1.1762454]
[1751256142787,0.26494402,657.82,656.43,1.1762454]
[1751256142991,0.26494402,657.82,656.41,3.267]
[1751256143189,0.26494402,657.82,656.42,1.1762454]
[1751256143391,0.26494402,657.82,656.43,1.1762454]
[1751256143591,0.26494402,657.82,656.41,3.267]
[1751256143790,0.26494402,657.82,656.42,1.1763012]
[1751256143995,0.26494402,657.82,656.43,1.1763012]
[1751256144291,0.26494402,657.82,656.44,1.1763012]
[1751256144591,0.26494402,657.82,656.41,3.267]
[1751256144794,0.26494402,657.82,656.42,1.1762634]
[1751256145090,0.26494402,657.82,656.43,1.1762634]
[1751256145293,0.26494402,657.82,656.44,1.1762634]
[1751256145492,0.26494402,657.82,656.41,3.267]
[1751256145693,0.26494402,657.82,656.42,1.1763472]
[1751256145892,0.26494402,657.82,656.43,1.1763472]
[1751256146094,0.26494402,657.82,656.44,1.1763472]
[1751256146292,0.26494402,657.82,656.41,3.267]
[1751256146491,0.26494402,657.82,656.42,1.1764419]
[1751256146695,0.26494402,657.82,656.43,1.1764419]
[1751256146895,0.26494402,657.82,656.44,1.1764419]
[1751256147092,0.26494402,657.82,656.45,1.17643]
[1751256147293,0.26494402,657.82,656.46,1.17643]
[1751256147595,0.26494402,657.82,656.47,1.17643]
[1751256147792,0.26494402,657.82,656.48,1.17643]
[1751256148094,0.26494402,657.82,656.49,1.17643]
[1751256148299,0.26494402,657.82,656.5,1.17643]
[1751256148493,0.26494402,657.82,656.51,1.17643]
[1751256148696,0.26494402,657.82,656.52,1.17643]
[1751256148898,0.26494402,657.82,656.53,1.17643]
[1751256149101,0.26494402,657.82,656.41,3.267]
[1751256149400,0.26494402,657.82,656.42,1.176368]
[1751256149697,0.26494402,657.82,656.43,1.176368]
[1751256149895,0.26494402,657.82,656.44,1.176368]
[1751256150097,0.26494402,657.82,656.45,1.176368]
[1751256150395,0.26494402,657.82,656.46,1.176368]
[1751256150699,0.26494402,657.82,656.47,1.176368]
[1751256150897,0.26494402,657.82,656.48,1.176368]
[1751256151102,0.26494402,657.82,656.49,1.176368]
[1751256151400,0.26494402,657.82,656.5,1.176368]
[1751256151597,0.26494402,657.82,656.51,1.176368]
[1751256151801,0.26494402,657.82,656.52,1.176368]
[1751256152101,0.26494402,657.82,656.51,2.617]
[1751256152397,0.26494402,657.82,656.52,1.1769482]
[1751256152696,0.26494402,657.82,656.53,1.1768929]
[1751256152897,0.26494402,657.82,656.51,2.617]
[1751256153101,0.26494402,657.82,656.52,1.1768371]
[1751256153403,0.26494402,657.82,656.51,2.617]
[1751256153599,0.26494402,657.82,656.52,1.1769506]
[1751256153802,0.26494402,657.82,656.51,2.617]
[1751256153999,0.26494402,657.82,656.52,1.1769505]
[1751256154201,0.26494402,657.82,656.51,2.617]
[1751256154498,0.26494402,657.82,656.52,1.1770868]
[1751256154703,0.26494402,657.82,656.53,1.1770868]
[1751256154900,0.26494402,657.82,656.54,1.1770868]
[1751256155103,0.26494402,657.82,656.55,1.1770868]
[1751256155304,0.26494402,657.82,656.56,1.1770868]
[1751256155510,0.26494402,657.82,656.51,2.617]
[1751256155704,0.26494402,657.82,656.52,1.1770198]
[1751256155905,0.26494402,657.82,656.53,1.1770198]
[1751256156206,0.26494402,657.82,656.54,1.1770198]
[1751256156501,0.26494402,657.82,656.55,1.1770198]
[1751256156801,0.26494402,657.82,656.51,2.617]
[1751256157003,0.26494402,657.82,656.52,1.1771681]
[1751256157205,0.26494402,657.82,656.53,1.1771681]
[1751256157402,0.26494402,657.82,656.54,1.1771681]
[1751256157604,0.26494402,657.82,656.51,2.617]
[1751256157805,0.26494402,657.82,656.52,1.1773445]
[1751256158006,0.26494402,657.82,656.53,1.1773445]
[1751256158207,0.26494402,657.82,656.54,1.1773445]
[1751256158507,0.26494402,657.82,656.51,2.617]
[1751256158708,0.26494402,657.82,656.52,1.1775502]
[1751256158906,0.26494402,657.82,656.53,1.1775502]
[1751256159110,0.26494402,657.82,656.51,2.617]
[1751256159305,0.26494402,657.82,656.52,1.1777875]
[1751256159605,0.26494402,657.82,656.53,1.1777875]
[1751256159805,0.26494402,657.82,656.51,2.617]
[1751256160006,0.26494402,657.82,656.52,1.1777875]
[1751256160207,0.26494402,657.82,656.51,2.617]
[1751256160509,0.26494402,657.82,656.52,1.1780586]
[1751256160709,0.26494402,657.82,656.51,2.617]
[1751256160907,0.26494402,657.82,656.52,1.1780586]
[1751256161110,0.26494402,657.82,656.51,2.617]
[1751256161313,0.26494402,657.82,656.52,1.1783667]
[1751256161506,0.26494402,657.82,656.51,2.617]
[1751256161709,0.26494402,657.82,656.52,1.1783667]
[1751256161911,0.26494402,657.82,656.51,2.617]
[1751256163507,0.26494402,657.82,656.52,3.357]
[1751256173722,3.810242,657.79,656.52,3.357]
[1751256174220,3.810242,657.76,656.53,1.1845048]
[1751256174423,3.810242,657.76,656.54,1.1845048]
[1751256174719,3.810242,657.76,656.52,3.357]
[1751256174920,3.810242,657.76,656.53,1.1845048]
[1751256175122,3.810242,657.76,656.54,1.1845048]
[1751256175322,3.810242,657.72,656.52,3.357]
[1751256175522,3.810242,657.72,656.53,1.1845631]
[1751256175722,3.810242,657.72,656.54,1.1845631]
[1751256176022,3.810242,657.72,656.52,3.357]
[1751256176221,3.810242,657.72,656.53,1.1846401]
[1751256176422,3.810242,657.72,656.54,1.1846401]
[1751256176622,3.810242,657.72,656.52,3.357]
[1751256177020,0.26494402,657.82,656.52,3.357]
[1751256177222,0.26494402,657.82,656.53,1.1847781]
[1751256177422,0.26494402,657.82,656.52,3.357]
[1751256177624,0.26494402,657.82,656.53,1.1848015]
[1751256177919,0.26494402,657.82,656.52,3.357]
[1751256178121,0.26494402,657.82,656.53,1.1848015]
[1751256178320,0.26494402,657.82,656.52,3.357]
[1751256178522,0.26494402,657.82,656.53,1.1848216]
[1751256178724,0.26494402,657.82,656.52,3.357]
[1751256179621,0.26494402,657.82,656.51,2.617]
[1751256182933,3.810242,657.79,656.52,3.552]
[1751256183833,3.810242,657.77,656.52,3.552]
[1751256184532,3.810242,657.78,656.52,3.552]
[1751256185533,0.26494402,657.82,656.52,3.552]
[1751256187034,3.810242,657.79,656.52,3.552]
[1751256187436,3.810242,657.7,656.52,3.552]
[1751256189135,3.810242,657.72,656.52,3.552]
[1751256189637,0.26494402,657.82,656.52,3.552]
[1751256192235,0.26494402,657.82,656.53,1.988]
[1751256192839,3.810242,657.43,656.53,1.988]
[1751256193241,3.810242,657.49,656.53,1.988]
[1751256194338,3.810242,657.51,656.53,1.988]
[1751256197443,3.810242,657.57,656.53,1.988]
[1751256199540,3.810242,657.56,656.53,1.988]
[1751256201048,3.810242,657.58,656.53,1.988]
[1751256201542,3.810242,657.62,656.53,1.988]
[1751256204245,3.810242,657.6,656.53,1.988]
[1751256204748,3.810242,657.62,656.53,1.988]
[1751256205348,3.810242,657.63,656.53,1.988]
[1751256205751,3.810242,657.78,656.53,1.988]
[1751256206347,0.26494402,657.82,656.53,1.988]
[1751256206348,3.810242,657.79,656.53,1.988]
[1751256206948,0.26494402,657.82,656.53,1.988]
[1751256209849,0.26494402,657.82,656.54,3.288]
[1751256214358,0.26494402,657.82,656.55,3.023]
[1751256215656,3.810242,657.75,656.55,3.023]
[1751256217356,3.810242,657.67,656.55,3.023]
[1751256217757,3.810242,657.66,656.55,3.023]
[1751256218861,3.810242,657.58,656.55,3.023]
[1751256219356,3.810242,657.57,656.55,3.023]
[1751256219960,3.810242,657.59,656.55,3.023]
[1751256221358,3.810242,657.54,656.55,3.023]
[1751256222567,3.810242,657.53,656.55,3.023]
[1751256223066,3.810242,657.63,656.55,3.023]
[1751256224066,3.810242,657.62,656.55,3.023]
[1751256224566,3.810242,657.61,656.55,3.023]
[1751256225170,3.810242,657.6,656.55,3.023]
[1751256226069,3.810242,657.68,656.55,3.023]
[1751256226668,3.810242,657.7,656.55,3.023]
[1751256226966,3.810242,657.7,656.56,3.247]
[1751256227666,3.810242,657.8,656.56,3.247]
[1751256229773,3.810242,657.79,656.56,3.247]
[1751256230269,3.810242,657.8,656.56,3.247]
[1751256231969,4.07518602,657.82,656.56,3.247]
[1751256232374,3.810242,657.78,656.56,3.247]
[1751256237572,3.810242,657.76,656.56,3.247]
[1751256238578,3.810242,657.7,656.56,3.247]
[1751256239180,3.810242,657.69,656.56,3.247]
[1751256240680,3.810242,657.7,656.56,3.247]
[1751256241380,3.810242,657.69,656.56,3.247]
[1751256241782,3.810242,657.47,656.56,3.247]
[1751256242277,3.810242,657.49,656.56,3.247]
[1751256243377,3.810242,657.5,656.56,3.247]
[1751256243881,3.810242,657.51,656.56,3.247]
[1751256244578,3.810242,657.52,656.56,3.247]
[1751256244978,3.810242,657.51,656.56,3.247]
[1751256245980,3.810242,657.47,656.56,3.247]
[1751256246480,3.810242,657.46,656.56,3.247]
[1751256248183,3.810242,657.51,656.56,3.247]
[1751256248582,3.810242,657.54,656.56,3.247]
[1751256249683,3.810242,657.53,656.56,3.247]
[1751256250187,3.810242,657.49,656.56,3.247]
[1751256250685,3.810242,657.51,656.56,3.247]
[1751256251082,3.810242,657.58,656.56,3.247]
[1751256252587,3.810242,657.75,656.56,3.247]
[1751256254590,3.810242,657.73,656.56,3.247]
[1751256255086,3.810242,657.72,656.56,3.247]
[1751256256190,3.810242,657.72,656.57,2.762]
[1751256257487,3.810242,657.71,656.57,2.762]
[1751256257986,3.810242,657.72,656.57,2.762]
[1751256258389,3.810242,657.73,656.57,2.762]
[1751256259189,3.810242,657.73,656.58,3.205]
[1751256259892,3.810242,657.74,656.58,3.205]
[1751256260390,3.810242,657.73,656.58,3.205]
[1751256261992,3.810242,657.72,656.58,3.205]
[1751256262394,3.810242,657.58,656.58,3.205]
[1751256264591,3.810242,657.56,656.58,3.205]
[1751256265797,3.810242,657.51,656.58,3.205]
[1751256266597,3.810242,657.5,656.58,3.205]
[1751256267699,3.810242,657.46,656.58,3.205]
[1751256268195,3.810242,657.42,656.58,3.205]
[1751256268799,3.810242,657.43,656.58,3.205]
[1751256269801,3.810242,657.38,656.58,3.205]
[1751256271002,5.3343388,657.61,656.58,3.205]
[1751256271501,3.810242,657.65,656.58,3.205]
[1751256273411,0.26494402,657.82,656.58,3.205]
[1751256275507,3.810242,657.79,656.58,3.205]
[1751256275909,3.810242,657.76,656.58,3.205]
[1751256276508,3.810242,657.75,656.58,3.205]
[1751256277108,3.810242,657.74,656.58,3.205]
[1751256277510,3.810242,657.78,656.58,3.205]
[1751256278206,3.810242,657.75,656.58,3.205]
[1751256279714,3.810242,657.64,656.58,3.205]
[1751256280213,3.810242,657.65,656.58,3.205]
[1751256280615,0.26494402,657.82,656.58,3.205]
[1751256281314,0.26494402,657.82,656.1,1.1390626]
[1751256281614,0.26494402,657.82,656.11,2.90480318]
[1751256281815,0.26494402,657.82,656.12,1.76574058]
[1751256282017,0.26494402,657.82,656.13,1.76574058]
[1751256282213,0.26494402,657.82,656.14,1.76574058]
[1751256282515,0.26494402,657.82,656.15,1.1857177]
[1751256282714,0.26494402,657.82,656.16,1.1857177]
[1751256282715,3.810242,657.71,656.16,1.1857177]
[1751256282915,3.810242,657.71,656.17,1.1857177]
[1751256283115,3.810242,657.71,656.18,1.1857177]
[1751256283316,0.26494402,657.82,656.19,1.1857177]
[1751256283317,3.810242,657.72,656.19,1.1857177]
[1751256283614,3.810242,657.72,656.2,1.1857177]
[1751256283813,3.810242,657.72,656.21,1.1857177]
[1751256284013,3.810242,657.72,656.22,1.1857177]
[1751256284212,3.810242,657.72,656.21,2.189]
[1751256284213,3.810242,657.64,656.23,1.1857177]
[1751256284413,3.810242,657.64,656.24,1.1857177]
[1751256284716,3.810242,657.64,656.25,1.1857177]
[1751256285015,3.810242,657.64,656.26,1.1857177]
[1751256285214,3.810242,657.64,656.21,2.189]
[1751256285413,3.810242,657.65,656.22,1.1859727]
[1751256285616,3.810242,657.65,656.23,1.1859727]
[1751256285815,3.810242,657.65,656.24,1.1859727]
[1751256286015,3.810242,657.62,656.25,1.1859727]
[1751256286315,3.810242,657.62,656.26,1.1859727]
[1751256286510,3.810242,657.62,656.21,2.189]
[1751256286715,3.810242,657.62,656.22,1.1857848]
[1751256286914,3.810242,657.36,656.23,1.1857848]
[1751256287116,3.810242,657.36,656.24,1.1857848]
[1751256287314,3.810242,657.36,656.25,1.1857848]
[1751256287516,3.810242,657.37,656.26,1.1857848]
[1751256287714,3.810242,657.37,656.27,1.1857848]
[1751256287913,3.810242,657.37,656.28,1.1857848]
[1751256288214,3.810242,657.36,656.29,1.1857848]
[1751256288416,3.810242,657.36,656.3,1.1857848]
[1751256288617,3.810242,657.4,656.31,1.1857848]
[1751256288818,3.810242,657.4,656.32,1.1857848]
[1751256289015,3.810242,657.46,656.33,1.1857848]
[1751256289218,3.810242,657.46,656.21,2.189]
[1751256289420,3.810242,657.46,656.22,1.76496175]
[1751256289619,3.810242,657.46,656.23,1.1854145]
[1751256289816,3.810242,657.46,656.24,1.1854145]
[1751256290119,3.810242,657.48,656.25,1.1854145]
[1751256290314,3.810242,657.48,656.21,2.189]
[1751256290315,3.810242,657.48,656.26,1.1854145]
[1751256290515,3.810242,657.5,656.27,1.76481768]
[1751256290716,3.810242,657.5,656.28,1.76481768]
[1751256290919,3.810242,657.5,656.29,1.76481768]
[1751256291217,3.810242,657.6,656.3,1.76481768]
[1751256291420,3.810242,657.6,656.31,1.76481768]
[1751256291719,3.810242,657.59,656.32,1.76481768]
[1751256291919,3.810242,657.59,656.33,1.76481768]
[1751256292117,3.810242,657.59,656.34,1.1854145]
[1751256292322,3.810242,657.59,656.35,1.1854145]
[1751256292621,3.810242,657.61,656.36,1.1854145]
[1751256292821,3.810242,657.61,656.37,1.1854145]
[1751256293122,3.810242,657.61,656.38,1.1854145]
[1751256293317,3.810242,657.61,656.39,1.1854145]
[1751256293520,3.810242,657.61,656.4,1.1854145]
[1751256293820,3.810242,657.61,656.41,1.1854145]
[1751256294016,3.810242,657.61,656.21,2.189]
[1751256294221,3.810242,657.61,656.22,1.76444278]
[1751256294420,3.810242,657.61,656.23,1.76444278]
[1751256294621,3.810242,657.61,656.24,1.76444278]
[1751256294918,3.810242,657.61,656.25,1.76444278]
[1751256295121,3.810242,657.61,656.26,1.76444278]
[1751256295321,3.810242,657.6,656.27,1.76444278]
[1751256295521,3.810242,657.6,656.28,1.76444278]
[1751256295822,3.810242,657.6,656.29,1.76444278]
[1751256296021,3.810242,657.6,656.3,1.76444278]
[1751256296318,3.810242,657.62,656.31,1.76444278]
[1751256296523,3.810242,657.62,656.32,1.76444278]
[1751256296818,3.810242,657.62,656.33,1.76444278]
[1751256297021,3.810242,657.62,656.34,1.1851809]
[1751256297221,3.810242,657.62,656.21,2.189]
[1751256297222,3.810242,657.62,656.35,1.1851809]
[1751256297417,3.810242,657.65,656.36,1.1851809]
[1751256297622,3.810242,657.65,656.37,1.1851809]
[1751256297822,3.810242,657.65,656.38,1.1851809]
[1751256298122,3.810242,657.65,656.39,1.1851809]
[1751256298325,3.810242,657.65,656.4,1.1851809]
[1751256298625,3.810242,657.65,656.41,1.1851809]
[1751256298924,3.810242,657.65,656.42,1.1851809]
[1751256299221,3.810242,657.65,656.43,1.1851809]
[1751256299421,3.810242,657.65,656.44,1.1851809]
[1751256299621,3.810242,657.65,656.45,1.1851809]
[1751256299820,3.810242,657.65,656.46,1.1851809]
[1751256300022,3.810242,657.61,656.22,1.1390626]
[1751256300222,3.810242,657.61,656.23,1.76473311]
[1751256300426,3.810242,657.61,656.24,1.76473311]
[1751256300626,3.810242,657.61,656.25,1.76473311]
[1751256300822,3.810242,657.61,656.26,1.76473311]
[1751256301026,3.810242,657.57,656.27,1.76473311]
[1751256301227,3.810242,657.57,656.28,1.76473311]
[1751256301523,3.810242,657.59,656.29,1.76473311]
[1751256301821,3.810242,657.59,656.3,1.76473311]
[1751256302025,3.810242,657.59,656.31,1.76473311]
[1751256302221,3.810242,657.59,656.32,1.76473311]
[1751256302423,3.810242,657.59,656.33,1.76475292]
[1751256302624,3.810242,657.57,656.34,1.76475292]
[1751256302822,3.810242,657.57,656.35,1.76475292]
[1751256303027,3.810242,657.57,656.36,1.76475292]
[1751256303227,3.810242,657.6,656.37,1.76475292]
[1751256303429,3.810242,657.6,656.38,1.76475292]
[1751256303628,3.810242,657.6,656.39,1.185519]
[1751256303828,3.810242,657.6,656.4,1.185519]
[1751256304025,3.810242,657.6,656.41,1.185519]
[1751256304228,3.810242,657.66,656.42,1.185519]
[1751256304524,3.810242,657.66,656.43,1.185519]
[1751256304723,3.810242,657.68,656.44,1.185519]
[1751256304929,3.810242,657.68,656.45,1.185519]
[1751256305224,3.810242,657.68,656.46,1.185519]
[1751256305427,3.810242,657.68,656.24,2.534]
[1751256305628,3.810242,657.68,656.25,1.76507775]
[1751256305829,3.810242,657.68,656.26,1.76507775]
[1751256306028,3.810242,657.68,656.27,1.76507775]
[1751256306227,3.810242,657.68,656.28,1.76507775]
[1751256306428,3.810242,657.68,656.29,1.76507775]
[1751256306628,3.810242,657.68,656.3,1.76507775]
[1751256306828,3.810242,657.68,656.31,1.76507775]
[1751256307027,3.810242,657.68,656.32,1.76507775]
[1751256307228,3.810242,657.68,656.33,1.76507775]
[1751256307527,3.810242,657.69,656.34,1.76507775]
[1751256307731,3.810242,657.69,656.35,1.76507775]
[1751256307929,3.810242,657.69,656.36,1.76507775]
[1751256308229,3.810242,657.69,656.37,1.76507775]
[1751256308533,3.810242,657.73,656.38,1.76507775]
[1751256308832,3.810242,657.73,656.39,1.76507775]
[1751256309031,3.810242,657.73,656.4,1.76507775]
[1751256309231,3.810242,657.73,656.41,1.1857977]
[1751256309433,3.810242,657.73,656.42,1.1857977]
[1751256309633,3.810242,657.73,656.43,1.1857977]
[1751256309833,3.810242,657.73,656.44,1.1857977]
[1751256310032,3.810242,657.73,656.24,2.534]
[1751256310033,0.26494402,657.82,656.45,1.1857977]
[1751256310230,0.26494402,657.82,656.46,1.1857977]
[1751256310431,0.26494402,657.82,656.47,1.1857977]
[1751256310634,0.26494402,657.82,656.48,1.1857977]
[1751256310835,0.26494402,657.82,656.49,1.1857977]
[1751256311036,0.26494402,657.82,656.5,1.1857977]
[1751256311237,0.26494402,657.82,656.51,1.1857977]
[1751256311532,3.810242,657.8,656.52,1.1857977]
[1751256311733,3.810242,657.8,656.53,1.1857977]
[1751256311939,3.810242,657.8,656.54,1.1857977]
[1751256312234,3.810242,657.8,656.55,1.1857977]
[1751256312432,3.810242,657.8,656.56,1.1857977]
[1751256312636,3.810242,657.8,656.57,1.1857977]
[1751256312837,3.810242,657.8,656.31,1.1390626]
[1751256313045,3.810242,657.78,656.32,1.7644683]
[1751256313238,3.810242,657.78,656.33,1.7644683]
[1751256313438,3.810242,657.78,656.34,1.7644683]
[1751256313738,3.810242,657.75,656.35,1.7644683]
[1751256313935,3.810242,657.75,656.36,1.7644683]
[1751256314132,0.26494402,657.82,656.37,1.7644683]
[1751256314336,0.26494402,657.82,656.38,4.1084683]
[1751256314534,0.26494402,657.82,656.39,1.7644683]
[1751256314738,0.26494402,657.82,656.4,1.7644683]
[1751256314938,0.26494402,657.82,656.41,1.7644683]
[1751256315137,0.26494402,657.82,656.42,1.1852058]
[1751256315338,0.26494402,657.82,656.43,1.1852058]